fUST/lending_fUST_20241124
["ID","MTS","AMOUNT","RATE_DAILY","PERIOD"]
[343195815,1732433438750,-500.0,0.00019177,2]
[343195816,1732433438761,-500.0,0.00019177,2]
[343195817,1732433438773,-500.0,0.00019177,2]
[343195818,1732433438784,-500.0,0.00019177,2]
[343195819,1732433438796,-450.31614111,0.00019177,2]
[343195820,1732433438808,-485.3787169,0.00019177,2]
[343195821,1732433438819,-500.0,0.00019177,2]
[343195822,1732433438833,-500.0,0.00019177,2]
[343195823,1732433438845,-500.0,0.00019177,2]
[343195824,1732433438857,-500.0,0.00019177,2]
[343195825,1732433438869,-500.0,0.00019177,2]
[343195826,1732433438881,-500.0,0.00019177,2]
[343195827,1732433438893,-500.0,0.00019177,2]
[343195828,1732433438904,-500.0,0.00019177,2]
[343195829,1732433438915,-434.68503515,0.00019177,2]
[343195830,1732433438933,-65.31496485,0.00019177,2]
[343195831,1732433438944,-500.0,0.00019177,2]
[343195832,1732433438956,-500.0,0.00019177,2]
[343195833,1732433438967,-500.0,0.00019177,2]
[343195834,1732433438979,-500.0,0.00019177,2]
[343195835,1732433438991,-500.0,0.00019177,2]
[343195836,1732433439002,-500.0,0.00019177,2]
[343195837,1732433439013,-500.0,0.00019177,2]
[343195838,1732433439025,-500.0,0.00019177,2]
[343195839,1732433439042,-529.16274553,0.00019177,2]
[343195840,1732433439054,-500.0,0.00019177,2]
[343195841,1732433439067,-500.0,0.00019177,2]
[343195842,1732433439080,-500.0,0.00019177,2]
[343195843,1732433439092,-500.0,0.00019177,2]
[343195844,1732433439105,-500.0,0.00019177,2]
[343195845,1732433439118,-500.0,0.00019177,2]
[343195846,1732433439130,-500.0,0.00019177,2]
[343195847,1732433439141,-500.0,0.00019177,2]
[343195848,1732433439152,-339.63980293,0.00019177,2]
[343195849,1732433439162,-500.0,0.00019177,2]
[343195850,1732433439301,-500.0,0.00019177,2]
[343195851,1732433439311,-500.0,0.00019177,2]
[343195852,1732433439322,-500.0,0.00019177,2]
[343195853,1732433439333,-500.0,0.00019177,2]
[343195854,1732433439343,-500.0,0.00019177,2]
[343195855,1732433439352,-500.0,0.00019177,2]
[343195856,1732433439362,-500.0,0.00019177,2]
[343195857,1732433439371,-500.0,0.00019177,2]
[343195858,1732433439381,-500.0,0.00019177,2]
[343195859,1732433439391,-500.0,0.00019178,2]
[343195860,1732433439400,-500.0,0.00019178,2]
[343195861,1732433439409,-307.24473197,0.00019178,2]
[343195862,1732433439419,-500.0,0.00019178,2]
[343195863,1732433439429,-500.0,0.00019178,2]
[343195864,1732433439438,-500.0,0.00019178,2]
[343195865,1732433439448,-500.0,0.00019178,2]
[343195866,1732433439461,-500.0,0.00019178,2]
[343195867,1732433439471,-500.0,0.00019178,2]
[343195868,1732433439481,-553.82,0.00019178,2]
[343195869,1732433439491,-604.5,0.00019178,2]
[343195870,1732433439501,-933.03,0.00019178,2]
[343195871,1732433439512,-500.0,0.00019178,2]
[343195872,1732433439522,-51.8140582,0.00019178,2]
[343195873,1732433439541,-448.1859418,0.00019178,2]
[343195874,1732433439550,-332.96382709,0.00019178,2]
[343195875,1732433439560,-500.0,0.00019178,2]
[343195876,1732433439570,-500.0,0.00019178,2]
[343195877,1732433439583,-500.0,0.00019178,2]
[343195878,1732433439593,-500.0,0.00019178,2]
[343195879,1732433439603,-500.0,0.00019178,2]
[343195880,1732433439613,-500.0,0.00019178,2]
[343195881,1732433439622,-500.0,0.00019178,2]
[343195882,1732433439632,-500.0,0.00019178,2]
[343195883,1732433439642,-500.0,0.00019178,2]
[343195884,1732433439651,-488.39000646,0.00019178,2]
[343195885,1732433439661,-500.0,0.00019178,2]
[343195886,1732433439670,-500.0,0.00019178,2]
[343195887,1732433439680,-500.0,0.00019178,2]
[343195888,1732433439690,-820.89,0.00019178,2]
[343195889,1732433439699,-500.0,0.00019178,2]
[343195890,1732433439708,-1751.19,0.00019178,2]
[343195891,1732433439719,-500.0,0.00019178,2]
[343195892,1732433439729,-546.29,0.00019178,2]
[343195893,1732433439738,-500.0,0.00019178,2]
[343195894,1732433439747,-500.0,0.00019178,2]
[343195895,1732433439756,-500.0,0.00019178,2]
[343195896,1732433439766,-500.0,0.00019178,2]
[343195897,1732433439775,-500.0,0.00019178,2]
[343195898,1732433439785,-500.0,0.00019178,2]
[343195899,1732433439795,-500.0,0.00019178,2]
[343195900,1732433439805,-500.0,0.00019178,2]
[343195901,1732433439815,-500.0,0.00019178,2]
[343195902,1732433439827,-279.50419158,0.00019178,2]
[343195903,1732433439836,-500.0,0.00019178,2]
[343195904,1732433439846,-500.0,0.00019178,2]
[343195905,1732433439855,-500.0,0.00019178,2]
[343195906,1732433439865,-500.0,0.00019178,2]
[343195907,1732433439875,-500.0,0.00019178,2]
[343195908,1732433439884,-500.0,0.00019178,2]
[343195909,1732433439894,-1019.13,0.00019178,2]
[343195910,1732433439903,-500.0,0.00019178,2]
[343195912,1732433439912,-500.0,0.00019178,2]
[343195913,1732433439922,-500.0,0.00019178,2]
[343195914,1732433439932,-500.0,0.00019178,2]
[343195915,1732433439942,-500.0,0.00019178,2]
[343195916,1732433439953,-500.0,0.00019178,2]
[343195917,1732433439963,-500.0,0.00019178,2]
[343195918,1732433439973,-500.0,0.00019178,2]
[343195919,1732433439983,-500.0,0.00019178,2]
[343195920,1732433439993,-502.85861916,0.00019178,2]
[343195921,1732433440003,-500.0,0.00019178,2]
[343195922,1732433440013,-500.0,0.00019178,2]
[343195923,1732433440023,-500.0,0.00019178,2]
[343195924,1732433440032,-295.23763174,0.00019178,2]
[343195925,1732433440042,-500.0,0.00019178,2]
[343195926,1732433440051,-500.0,0.00019178,2]
[343195927,1732433440061,-500.0,0.00019178,2]
[343195928,1732433440071,-500.0,0.00019178,2]
[343195929,1732433440082,-500.0,0.00019178,2]
[343195930,1732433440091,-500.0,0.00019178,2]
[343195931,1732433440100,-500.0,0.00019178,2]
[343195932,1732433440110,-500.0,0.00019178,2]
[343195933,1732433440119,-1010.16,0.00019178,2]
[343195934,1732433440128,-500.0,0.00019178,2]
[343195935,1732433440137,-500.0,0.00019178,2]
[343195936,1732433440147,-500.0,0.00019178,2]
[343195937,1732433440157,-500.0,0.00019178,2]
[343195938,1732433440167,-500.0,0.00019178,2]
[343195939,1732433440177,-500.0,0.00019178,2]
[343195940,1732433440188,-500.0,0.00019178,2]
[343195941,1732433440198,-500.0,0.00019178,2]
[343195942,1732433440208,-882.88,0.00019178,2]
[343195943,1732433440218,-820.8,0.00019178,2]
[343195944,1732433440229,-2522.74,0.00019178,2]
[343195945,1732433440239,-915.0,0.00019178,2]
[343195946,1732433440248,-500.0,0.00019178,2]
[343195947,1732433440258,-500.0,0.00019178,2]
[343195948,1732433440268,-905.71,0.00019178,2]
[343195949,1732433440279,-543.78,0.00019178,2]
[343195950,1732433440289,-500.0,0.00019178,2]
[343195951,1732433440299,-1866.42,0.00019178,2]
[343195952,1732433440309,-624.54,0.00019178,2]
[343195953,1732433440319,-766.58,0.00019178,2]
[343195954,1732433440332,-1408.02,0.00019178,2]
[343195955,1732433440343,-500.0,0.00019178,2]
[343195956,1732433440353,-500.0,0.00019178,2]
[343195957,1732433440363,-1418.98,0.00019178,2]
[343195958,1732433440373,-500.0,0.00019178,2]
[343195959,1732433440383,-500.0,0.00019178,2]
[343195960,1732433440393,-791.93,0.00019178,2]
[343195961,1732433440403,-500.0,0.00019178,2]
[343195962,1732433440413,-500.0,0.00019178,2]
[343195963,1732433440423,-500.0,0.00019178,2]
[343195964,1732433440432,-731.33,0.00019178,2]
[343195965,1732433440442,-500.0,0.00019178,2]
[343195966,1732433440452,-11135.86,0.00019178,2]
[343195967,1732433440462,-500.0,0.00019178,2]
[343195968,1732433440476,-500.0,0.00019178,2]
[343195969,1732433440486,-500.0,0.00019178,2]
[343195970,1732433440496,-500.0,0.00019178,2]
[343195971,1732433440506,-227.99532177,0.00019178,2]
[343195972,1732433440515,-649.76,0.00019178,2]
[343195973,1732433440525,-500.0,0.00019178,2]
[343195974,1732433440535,-500.0,0.00019178,2]
[343195975,1732433440547,-164.6451256,0.00019178,2]
[343195976,1732433440556,-558.10859064,0.00019352,2]
[343195977,1732433440566,-420.0,0.00019419,2]
[343195978,1732433440577,-500.0,0.00019452,2]
[343195979,1732433440586,-500.0,0.00019452,2]
[343195980,1732433440596,-500.0,0.00019452,2]
[343195981,1732433440605,-500.0,0.00019452,2]
[343195982,1732433440615,-285.0814017,0.00019452,2]
[343195983,1732433440624,-500.0,0.00019452,2]
[343195984,1732433440634,-500.0,0.00019452,2]
[343195985,1732433440644,-500.0,0.00019452,2]
[343195986,1732433440654,-553.82,0.00019452,2]
[343195987,1732433440664,-604.5,0.00019452,2]
[343195988,1732433440673,-933.03,0.00019452,2]
[343195989,1732433440683,-500.0,0.00019452,2]
[343195990,1732433440693,-500.0,0.00019452,2]
[343195991,1732433440702,-500.0,0.00019452,2]
[343195992,1732433440711,-500.0,0.00019452,2]
[343195993,1732433440721,-500.0,0.00019452,2]
[343195994,1732433440730,-500.0,0.00019452,2]
[343195995,1732433440740,-500.0,0.00019452,2]
[343195996,1732433440750,-500.0,0.00019452,2]
[343195997,1732433440759,-500.0,0.00019452,2]
[343195998,1732433440769,-151.0,0.00019452,2]
[343195999,1732433440779,-500.0,0.00019452,2]
[343196000,1732433440789,-500.0,0.00019452,2]
[343196001,1732433440799,-500.0,0.00019452,2]
[343196002,1732433440809,-151.0,0.00019452,2]
[343196003,1732433440818,-151.0,0.00019452,2]
[343196004,1732433440830,-500.0,0.00019452,2]
[343196005,1732433440843,-500.0,0.00019452,2]
[343196006,1732433440852,-820.89,0.00019452,2]
[343196007,1732433440862,-500.0,0.00019452,2]
[343196008,1732433440872,-1751.19,0.00019452,2]
[343196009,1732433440882,-500.0,0.00019452,2]
[343196010,1732433440892,-546.29,0.00019452,2]
[343196011,1732433440900,-500.0,0.00019452,2]
[343196012,1732433440910,-500.0,0.00019452,2]
[343196013,1732433440920,-151.0,0.00019452,2]
[343196014,1732433440929,-500.0,0.00019452,2]
[343196015,1732433440939,-500.0,0.00019452,2]
[343196016,1732433440949,-500.0,0.00019452,2]
[343196017,1732433440958,-500.0,0.00019452,2]
[343196018,1732433440968,-500.0,0.00019452,2]
[343196019,1732433440978,-151.0,0.00019452,2]
[343196020,1732433440987,-500.0,0.00019452,2]
[343196021,1732433440997,-500.0,0.00019452,2]
[343196022,1732433441007,-501.22963876,0.00019452,2]
[343196023,1732433441016,-500.0,0.00019452,2]
[343196024,1732433441026,-500.0,0.00019452,2]
[343196025,1732433441036,-500.0,0.00019452,2]
[343196026,1732433441046,-500.0,0.00019452,2]
[343196027,1732433441056,-500.0,0.00019452,2]
[343196028,1732433441067,-1019.13,0.00019452,2]
[343196029,1732433441077,-151.0,0.00019452,2]
[343196030,1732433441087,-500.0,0.00019452,2]
[343196031,1732433441097,-367.089146,0.00019452,2]
[343196032,1732433441106,-367.089146,0.00019452,2]
[343196033,1732433441116,-500.0,0.00019452,2]
[343196034,1732433441125,-151.0,0.00019452,2]
[343196035,1732433441135,-307.76809214,0.00019452,2]
[343196036,1732433441145,-500.0,0.00019452,2]
[343196037,1732433441154,-151.0,0.00019452,2]
[343196038,1732433441164,-500.0,0.00019452,2]
[343196039,1732433441174,-151.0,0.00019452,2]
[343196040,1732433441185,-500.0,0.00019452,2]
[343196041,1732433441196,-500.0,0.00019452,2]
[343196042,1732433441205,-500.0,0.00019452,2]
[343196043,1732433441214,-151.0,0.00019452,2]
[343196044,1732433441223,-500.0,0.00019452,2]
[343196045,1732433441233,-169.717872,0.00019452,2]
[343196046,1732433441242,-550.647789,0.00019452,2]
[343196047,1732433441251,-169.717872,0.00019452,2]
[343196048,1732433441261,-550.647789,0.00019452,2]
[343196049,1732433441270,-500.0,0.00019452,2]
[343196050,1732433441279,-500.0,0.00019452,2]
[343196051,1732433441289,-500.0,0.00019452,2]
[343196052,1732433441299,-500.0,0.00019452,2]
[343196053,1732433441309,-500.0,0.00019452,2]
[343196054,1732433441319,-151.0,0.00019452,2]
[343196055,1732433441330,-151.23521,0.00019452,2]
[343196056,1732433441339,-616.6202349,0.00019452,2]
[343196057,1732433441349,-500.0,0.00019452,2]
[343196058,1732433441359,-151.0,0.00019452,2]
[343196059,1732433441368,-500.0,0.00019452,2]
[343196060,1732433441378,-885.008125,0.00019452,2]
[343196061,1732433441389,-151.0,0.00019452,2]
[343196062,1732433441400,-885.008125,0.00019452,2]
[343196063,1732433441410,-500.0,0.00019452,2]
[343196064,1732433441420,-220.111624,0.00019452,2]
[343196065,1732433441429,-500.0,0.00019452,2]
[343196066,1732433441439,-500.0,0.00019452,2]
[343196067,1732433441449,-1010.16,0.00019452,2]
[343196068,1732433441461,-500.0,0.00019452,2]
[343196069,1732433441472,-500.0,0.00019452,2]
[343196070,1732433441482,-151.0,0.00019452,2]
[343196071,1732433441491,-151.0,0.00019452,2]
[343196072,1732433441502,-151.0,0.00019452,2]
[343196073,1732433441512,-500.0,0.00019452,2]
[343196074,1732433441521,-500.0,0.00019452,2]
[343196075,1732433441531,-500.0,0.00019452,2]
[343196076,1732433441541,-234.773152,0.00019452,2]
[343196077,1732433441551,-500.0,0.00019452,2]
[343196078,1732433441560,-234.773152,0.00019452,2]
[343196079,1732433441569,-500.0,0.00019452,2]
[343196080,1732433441580,-154.442741,0.00019452,2]
[343196081,1732433441588,-154.442741,0.00019452,2]
[343196082,1732433441597,-152.029813,0.00019452,2]
[343196083,1732433441607,-500.0,0.00019452,2]
[343196084,1732433441693,-882.88,0.00019452,2]
[343196085,1732433441704,-282.002555,0.00019452,2]
[343196086,1732433441715,-282.002555,0.00019452,2]
[343196087,1732433441725,-500.383123,0.00019452,2]
[343196088,1732433441734,-820.8,0.00019452,2]
[343196089,1732433441744,-2522.74,0.00019452,2]
[343196090,1732433441755,-500.383123,0.00019452,2]
[343196091,1732433441766,-915.0,0.00019452,2]
[343196092,1732433441776,-500.0,0.00019452,2]
[343196093,1732433441784,-500.0,0.00019452,2]
[343196094,1732433441794,-411.529934,0.00019452,2]
[343196095,1732433441805,-905.71,0.00019452,2]
[343196096,1732433441814,-543.78,0.00019452,2]
[343196097,1732433441824,-411.529934,0.00019452,2]
[343196098,1732433441834,-500.0,0.00019452,2]
[343196099,1732433441844,-1866.42,0.00019452,2]
[343196100,1732433441853,-624.54,0.00019452,2]
[343196101,1732433441862,-766.58,0.00019452,2]
[343196102,1732433441872,-1408.02,0.00019452,2]
[343196103,1732433441881,-500.0,0.00019452,2]
[343196104,1732433441890,-500.0,0.00019452,2]
[343196105,1732433441900,-77.93786107,0.00019452,2]
[343196106,1732433441923,-73.06213893,0.00019452,2]
[343196107,1732433441933,-1418.98,0.00019452,2]
[343196108,1732433441942,-500.0,0.00019452,2]
[343196109,1732433441953,-500.0,0.00019452,2]
[343196110,1732433441963,-791.93,0.00019452,2]
[343196111,1732433441973,-500.0,0.00019452,2]
[343196112,1732433441984,-500.0,0.00019452,2]
[343196113,1732433441994,-151.0,0.00019452,2]
[343196114,1732433442003,-500.0,0.00019452,2]
[343196115,1732433442012,-731.33,0.00019452,2]
[343196116,1732433442022,-500.0,0.00019452,2]
[343196117,1732433442031,-6485.39965819,0.00019452,2]
[343196126,1732433444035,-4650.46034181,0.00019452,2]
[343196127,1732433444045,-151.0,0.00019452,2]
[343196128,1732433444055,-500.0,0.00019452,2]
[343196129,1732433444065,-500.0,0.00019452,2]
[343196130,1732433444076,-500.0,0.00019452,2]
[343196131,1732433444090,-500.0,0.00019452,2]
[343196132,1732433444099,-86.85992965,0.00019452,2]
[343196133,1732433446108,-554.13,0.00019178,2]
[343196134,1732433446118,-500.0,0.00019178,2]
[343196135,1732433446128,-562.90007035,0.00019452,2]
[343196136,1732433446139,-151.0,0.00019452,2]
[343196137,1732433446148,-500.0,0.00019452,2]
[343196138,1732433446158,-275.016217,0.00019452,2]
[343196139,1732433446167,-500.0,0.00019452,2]
[343196140,1732433446177,-151.0,0.00019452,2]
[343196141,1732433446186,-151.0,0.00019452,2]
[343196142,1732433446195,-503.669661,0.00019452,2]
[343196143,1732433446205,-500.0,0.00019452,2]
[343196144,1732433446215,-554.13,0.00019452,2]
[343196145,1732433446224,-503.669661,0.00019452,2]
[343196146,1732433446233,-501.58300034,0.00019473,2]
[343196147,1732433446243,-501.08195041,0.00019473,2]
[343196148,1732433446252,-283.68021765,0.00019725,2]
[343196149,1732433446262,-251.75937679,0.00019725,2]
[343196150,1732433446272,-271.36593542,0.00019725,2]
[343196152,1732433446281,-500.0,0.00019725,2]
[343196154,1732433446291,-441.86382341,0.00019725,2]
[343196155,1732433446300,-500.0,0.00019725,2]
[343196156,1732433446310,-151.0,0.00019725,2]
[343196157,1732433446319,-151.0,0.00019725,2]
[343196158,1732433446328,-151.0,0.00019725,2]
[343196159,1732433446340,-151.0,0.00019725,2]
[343196160,1732433446349,-500.0,0.00019726,2]
[343196161,1732433446359,-64.93808663,0.00019726,2]
[343196162,1732433446372,-435.06191337,0.00019726,2]
[343196163,1732433446382,-500.0,0.00019726,2]
[343196164,1732433446393,-500.0,0.00019726,2]
[343196165,1732433446411,-500.0,0.00019726,2]
[343196166,1732433446421,-500.0,0.00019726,2]
[343196167,1732433446431,-151.0,0.00019726,2]
[343196168,1732433446440,-151.0,0.00019726,2]
[343196169,1732433446451,-151.0,0.00019726,2]
[343196170,1732433446470,-181.158101,0.00019726,2]
[343196171,1732433446491,-500.0,0.00019726,2]
[343196172,1732433446501,-553.82,0.00019726,2]
[343196173,1732433446511,-202.2536473,0.00019726,2]
[343196177,1732433680909,157.85,0.00022,60]
[343196178,1732433958352,168.071209,0.00013973,2]
[343196180,1732434045607,1000.0,0.00013,2]
[343196218,1732434632358,-354.67179388,0.00016662,2]
[343196219,1732434632368,-433.0,0.00017,2]
[343196220,1732434632378,-964.178831,0.00018128,2]
[343196221,1732434632387,-964.178831,0.00018813,2]
[343196222,1732434632397,-1318.64406931,0.00019077,2]
[343196223,1732434632407,-213.0,0.00019077,2]
[343196224,1732434632417,-12259.13980081,0.00019078,2]
[343196225,1732434632428,-436.00005,0.00019078,2]
[343196238,1732434638495,-1992.5892,0.00019078,2]
[343196248,1732434640222,-524.821899,0.00019078,2]
[343196249,1732434640234,-893.47010904,0.00019078,2]
[343196250,1732434640246,-575.39328132,0.00019078,2]
[343196251,1732434640257,-536.05230001,0.00019078,2]
[343196252,1732434640269,-473.48334561,0.00019078,2]
[343196253,1732434640280,-453.8960076,0.00019078,2]
[343196254,1732434640291,-446.7410001,0.00019078,2]
[343196255,1732434640302,-1161.67431419,0.00019078,2]
[343196256,1732434640314,-701.2469992,0.00019078,2]
[343196257,1732434640325,-788.854044,0.00019078,2]
[343196258,1732434640336,-494.12800008,0.00019078,2]
[343196259,1732434640347,-536.78720002,0.00019078,2]
[343196260,1732434640360,-232.90215554,0.00019078,2]
[343196261,1732434640370,-163.57,0.00019168,3]
[343196262,1732434640379,-163.57,0.00019168,3]
[343196263,1732434640388,-434.95784446,0.00019173,2]
[343196264,1732434640400,-65.04215554,0.00019173,2]
[343196265,1732434640409,-470.15784446,0.00019173,2]
[343196267,1732434644907,-29.84215554,0.00019173,2]
[343196268,1732434644917,-500.0,0.00019173,2]
[343196269,1732434644929,-500.0,0.00019173,2]
[343196270,1732434644939,-500.0,0.00019173,2]
[343196271,1732434644949,-500.0,0.00019177,2]
[343196272,1732434644959,-609.4865241,0.00019177,2]
[343196273,1732434644969,-500.0,0.00019177,2]
[343196274,1732434644978,-500.0,0.00019177,2]
[343196275,1732434644990,-500.0,0.00019177,2]
[343196276,1732434645000,-500.0,0.00019177,2]
[343196277,1732434645009,-259.9599781,0.00019177,2]
[343196278,1732434645019,-500.0,0.00019177,2]
[343196279,1732434645029,-500.0,0.00019177,2]
[343196280,1732434645039,-500.0,0.00019177,2]
[343196281,1732434645048,-500.0,0.00019177,2]
[343196282,1732434645058,-482.84061022,0.00019177,2]
[343196283,1732434645068,-500.0,0.00019177,2]
[343196284,1732434645077,-500.0,0.00019177,2]
[343196285,1732434645087,-500.0,0.00019177,2]
[343196286,1732434645096,-500.0,0.00019177,2]
[343196287,1732434645106,-500.0,0.00019177,2]
[343196288,1732434645115,-500.0,0.00019177,2]
[343196289,1732434645125,-500.0,0.00019177,2]
[343196290,1732434645136,-500.0,0.00019177,2]
[343196291,1732434645146,-500.0,0.00019177,2]
[343196292,1732434645155,-1205.24199877,0.00019178,2]
[343196293,1732434645165,-500.0,0.00019178,2]
[343196294,1732434645175,-500.0,0.00019178,2]
[343196295,1732434645186,-500.0,0.00019178,2]
[343196296,1732434645195,-500.0,0.00019178,2]
[343196297,1732434645205,-500.0,0.00019178,2]
[343196298,1732434645215,-500.0,0.00019178,2]
[343196299,1732434645225,-500.0,0.00019178,2]
[343196300,1732434645235,-500.0,0.00019178,2]
[343196301,1732434645247,-500.0,0.00019178,2]
[343196302,1732434645256,-500.0,0.00019178,2]
[343196303,1732434645266,-500.0,0.00019178,2]
[343196304,1732434645275,-507.95,0.00019178,2]
[343196305,1732434645285,-500.0,0.00019178,2]
[343196306,1732434645295,-500.0,0.00019178,2]
[343196307,1732434645304,-500.0,0.00019178,2]
[343196308,1732434645314,-500.0,0.00019178,2]
[343196309,1732434645323,-500.0,0.00019178,2]
[343196310,1732434645333,-752.48,0.00019178,2]
[343196311,1732434645343,-500.0,0.00019178,2]
[343196312,1732434645352,-1605.26,0.00019178,2]
[343196313,1732434645361,-500.0,0.00019178,2]
[343196314,1732434645371,-500.0,0.00019178,2]
[343196315,1732434645380,-500.0,0.00019178,2]
[343196316,1732434645390,-441.79941022,0.00019178,2]
[343196317,1732434645399,-500.0,0.00019178,2]
[343196318,1732434645409,-500.77,0.00019178,2]
[343196319,1732434645419,-500.0,0.00019178,2]
[343196320,1732434645428,-500.0,0.00019178,2]
[343196321,1732434645438,-500.0,0.00019178,2]
[343196322,1732434645447,-500.0,0.00019178,2]
[343196323,1732434645458,-934.2,0.00019178,2]
[343196324,1732434645467,-500.0,0.00019178,2]
[343196325,1732434645477,-500.0,0.00019178,2]
[343196326,1732434645487,-500.0,0.00019178,2]
[343196327,1732434645500,-500.0,0.00019178,2]
[343196328,1732434645512,-500.0,0.00019178,2]
[343196329,1732434645521,-500.0,0.00019178,2]
[343196330,1732434645531,-500.0,0.00019178,2]
[343196331,1732434645540,-500.0,0.00019178,2]
[343196332,1732434645550,-500.0,0.00019178,2]
[343196333,1732434645559,-500.0,0.00019178,2]
[343196334,1732434645569,-500.0,0.00019178,2]
[343196335,1732434645579,-500.0,0.00019178,2]
[343196336,1732434645588,-500.0,0.00019178,2]
[343196337,1732434645598,-500.0,0.00019178,2]
[343196338,1732434645607,-500.0,0.00019178,2]
[343196339,1732434645617,-500.0,0.00019178,2]
[343196340,1732434645627,-670.38,0.00019178,2]
[343196341,1732434645637,-500.0,0.00019178,2]
[343196342,1732434645647,-500.0,0.00019178,2]
[343196343,1732434645657,-500.0,0.00019178,2]
[343196344,1732434645668,-500.0,0.00019178,2]
[343196346,1732434645678,-500.0,0.00019178,2]
[343196348,1732434645689,-500.0,0.00019178,2]
[343196350,1732434645699,-500.0,0.00019178,2]
[343196351,1732434645709,-500.0,0.00019178,2]
[343196352,1732434645721,-500.0,0.00019178,2]
[343196353,1732434645730,-500.0,0.00019178,2]
[343196354,1732434645742,-500.0,0.00019178,2]
[343196356,1732434645751,-500.0,0.00019178,2]
[343196357,1732434645761,-589.8816566,0.00019178,2]
[343196358,1732434645770,-500.0,0.00019178,2]
[343196359,1732434645780,-500.0,0.00019178,2]
[343196360,1732434645789,-500.0,0.00019178,2]
[343196361,1732434645798,-925.98,0.00019178,2]
[343196362,1732434645808,-500.0,0.00019178,2]
[343196363,1732434645818,-500.0,0.00019178,2]
[343196364,1732434645828,-500.0,0.00019178,2]
[343196365,1732434645838,-500.0,0.00019178,2]
[343196366,1732434645851,-151.21022855,0.00019178,2]
[343196367,1732434645861,-752.4,0.00019178,2]
[343196368,1732434645872,-500.0,0.00019178,2]
[343196369,1732434645883,-1439.93,0.00019178,2]
[343196370,1732434645893,-830.24,0.00019178,2]
[343196371,1732434645903,-500.0,0.00019178,2]
[343196372,1732434645912,-838.75,0.00019178,2]
[343196373,1732434645925,-2312.51,0.00019178,2]
[343196374,1732434645935,-572.5,0.00019178,2]
[343196375,1732434645945,-500.0,0.00019178,2]
[343196376,1732434645955,-500.0,0.00019178,2]
[343196377,1732434645965,-702.7,0.00019178,2]
[343196378,1732434645974,-725.93,0.00019178,2]
[343196379,1732434645984,-1710.89,0.00019178,2]
[343196380,1732434645995,-500.0,0.00019178,2]
[343196381,1732434646005,-500.0,0.00019178,2]
[343196382,1732434646014,-1290.69,0.00019178,2]
[343196383,1732434646024,-500.0,0.00019178,2]
[343196384,1732434646033,-500.0,0.00019178,2]
[343196385,1732434646043,-500.0,0.00019178,2]
[343196386,1732434646053,-500.0,0.00019178,2]
[343196387,1732434646063,-1300.73,0.00019178,2]
[343196388,1732434646072,-595.62,0.00019178,2]
[343196389,1732434646082,-500.0,0.00019178,2]
[343196390,1732434646092,-9322.8864979,0.00019178,2]
[343196391,1732434646115,-884.9835021,0.00019178,2]
[343196392,1732434646124,-500.0,0.00019178,2]